bitfinex/quotes_BTCUSD_20250607
["timestamp","ask_amount","ask_price","bid_price","bid_amount"]
[1749309869652,1.107485,105630.0,105620.0,0.98344]
[1749309869835,1.08974775,105630.0,105620.0,0.98344]
[1749309870045,1.10083297,105630.0,105620.0,0.98344]
[1749309870248,1.10748413,105630.0,105620.0,0.98344]
[1749309870421,1.08013537,105630.0,105620.0,0.98344]
[1749309870626,1.08974772,105630.0,105620.0,0.98344]
[1749309870823,1.10748368,105630.0,105620.0,0.98344]
[1749309871051,1.10748371,105630.0,105620.0,0.98344]
[1749309871424,1.10748288,105630.0,105620.0,0.98344]
[1749309871745,1.09787038,105630.0,105620.0,0.98344]
[1749309871993,1.10748219,105630.0,105620.0,0.98344]
[1749309872142,1.10748211,105630.0,105620.0,0.98344]
[1749309872346,1.10748224,105630.0,105620.0,0.98344]
[1749309873120,1.10748245,105630.0,105620.0,0.98344]
[1749309873298,1.10748234,105630.0,105620.0,0.98344]
[1749309873515,1.08678612,105630.0,105620.0,0.98344]
[1749309873698,1.10452146,105630.0,105620.0,0.98344]
[1749309874116,1.10452109,105630.0,105620.0,0.98344]
[1749309874324,1.10452095,105630.0,105620.0,0.98344]
[1749309875387,1.10452095,105630.0,105620.0,1.07304]
[1749309875590,1.08822095,105630.0,105620.0,1.0726723]
[1749309875810,1.04763537,105630.0,105620.0,1.0726723]
[1749309876014,1.07202097,105630.0,105620.0,1.0726723]
[1749309876264,1.07202095,105630.0,105620.0,1.0726723]
[1749309876675,1.07202083,105630.0,105620.0,1.0726723]
[1749309877208,1.07202191,105630.0,105620.0,1.0726723]
[1749309877519,1.07202183,105630.0,105620.0,1.0726723]
[1749309877700,1.06537098,105630.0,105620.0,1.0726723]
[1749309877931,1.07202184,105630.0,105620.0,1.0726723]
[1749309878625,1.05428622,105630.0,105620.0,1.0726723]
[1749309878825,1.07202167,105630.0,105620.0,1.0726723]
[1749309879018,1.06537084,105630.0,105620.0,1.0726723]
[1749309879230,1.07202156,105630.0,105620.0,1.0726723]
[1749309879544,1.06537057,105630.0,105620.0,1.0726723]
[1749309879685,1.05428607,105630.0,105620.0,1.0726723]
[1749309880040,1.07202288,105630.0,105620.0,1.0726723]
[1749309880667,1.07202294,105630.0,105620.0,1.0726723]
[1749309880808,1.07202314,105630.0,105620.0,1.0726723]
[1749309881010,1.07202312,105630.0,105620.0,1.0726723]
[1749309881217,1.06537193,105630.0,105620.0,1.0726723]
[1749309881438,1.07202316,105630.0,105620.0,1.0726723]
[1749309882750,1.07202306,105630.0,105620.0,1.0726723]
[1749309883147,1.04763537,105630.0,105620.0,1.0726723]
[1749309883375,1.07058655,105630.0,105620.0,1.0726723]
[1749309883575,1.08832305,105630.0,105620.0,1.0726723]
[1749309884094,1.08167187,105630.0,105620.0,1.0726723]
[1749309884296,1.08832313,105630.0,105620.0,1.0726723]
[1749309884504,1.08167226,105630.0,105620.0,1.0726723]
[1749309884681,1.06393537,105630.0,105620.0,1.0726723]
[1749309884883,1.08832386,105630.0,105620.0,1.0726723]
[1749309885088,1.08832358,105630.0,105620.0,1.0726723]
[1749309885321,1.08832374,105630.0,105620.0,1.0726723]
[1749309886275,1.08832349,105630.0,105620.0,1.0726723]
[1749309886494,0.66020479,105630.0,105620.0,1.0726723]
[1749309886705,1.06393537,105630.0,105620.0,1.0726723]
[1749309886913,1.08832275,105630.0,105620.0,1.0726723]
[1749309887535,1.08832211,105630.0,105620.0,1.0726723]
[1749309887951,1.07058647,105630.0,105620.0,0.9830723]
[1749309888150,1.06393537,105630.0,105620.0,0.9830723]
[1749309888364,1.08832237,105630.0,105620.0,0.9830723]
[1749309888573,1.08832236,105630.0,105620.0,0.9830723]
[1749309888793,1.0816711,105630.0,105620.0,0.9830723]
[1749309889040,1.08832236,105630.0,105620.0,0.9830723]
[1749309889450,1.08832282,105630.0,105620.0,0.9830723]
[1749309890038,1.0883227,105630.0,105620.0,0.9830723]
[1749309890213,1.1042227,105630.0,105620.0,0.9830723]
[1749309891274,1.10422267,105630.0,105620.0,0.9830723]
[1749309891515,1.08648645,105630.0,105620.0,0.9830723]
[1749309891721,1.10422268,105630.0,105620.0,0.9830723]
[1749309892015,1.10422267,105630.0,105620.0,0.9830723]
[1749309892505,1.10422325,105630.0,105620.0,0.9830723]
[1749309892956,1.10422342,105630.0,105620.0,0.9830723]
[1749309892958,1.10422327,105630.0,105620.0,0.9830723]
[1749309893219,1.08648647,105630.0,105620.0,0.9830723]
[1749309893470,1.09757166,105630.0,105620.0,0.9830723]
[1749309893705,1.12027351,105630.0,105620.0,0.9830723]
[1749309893916,1.12692506,105630.0,105620.0,0.9830723]
[1749309894134,1.12692512,105630.0,105620.0,0.9830723]
[1749309894584,1.10253703,105630.0,105620.0,0.9830723]
[1749309894805,1.12692505,105630.0,105620.0,0.9830723]
[1749309895264,1.1091883,105630.0,105620.0,0.9830723]
[1749309895504,1.12692502,105630.0,105620.0,0.9830723]
[1749309895727,1.09957628,105630.0,105620.0,0.9830723]
[1749309895941,1.11731301,105630.0,105620.0,0.9830723]
[1749309896387,1.10622756,105630.0,105620.0,0.9830723]
[1749309896666,1.1239643,105630.0,105620.0,0.9830723]
[1749309896890,1.12396357,105630.0,105620.0,0.6908723]
[1749309897121,1.12396356,105630.0,105620.0,0.6908723]
[1749309897335,1.10126265,105630.0,105620.0,0.6908723]
[1749309897572,1.1239632,105630.0,105620.0,0.6908723]
[1749309898214,1.10126239,105630.0,105620.0,0.6908723]
[1749309898443,1.12396298,105630.0,105620.0,0.6908723]
[1749309898706,1.09461002,105630.0,105620.0,0.6908723]
[1749309898917,1.10126078,105630.0,105620.0,0.6908723]
[1749309899129,1.11731018,105630.0,105620.0,0.6908723]
[1749309899335,1.10126077,105630.0,105620.0,0.6908723]
[1749309899542,1.11731039,105630.0,105620.0,0.6908723]
[1749309899741,1.10126084,105630.0,105620.0,0.6908723]
[1749309899956,1.10126039,105630.0,105620.0,0.6908723]
[1749309900163,1.1080605,105630.0,105620.0,0.2908723]
[1749309900377,1.06906037,105630.0,105620.0,0.2908723]
[1749309900588,1.06906035,105630.0,105620.0,0.6908723]
[1749309900804,1.06906045,105630.0,105620.0,0.6908723]
[1749309901021,1.04467462,105630.0,105620.0,0.6908723]
[1749309901428,1.06906027,105630.0,105620.0,0.6908723]
[1749309902284,1.06240964,105630.0,105620.0,0.6908723]
[1749309902499,1.06782515,105630.0,105620.0,0.6908723]
[1749309902719,1.08555852,105630.0,105620.0,0.6908723]
[1749309902938,0.53882579,105620.0,105610.0,0.39734375]
[1749309903155,1.36402014,105620.0,105610.0,0.67298375]
[1749309903378,1.48316912,105620.0,105610.0,0.78190375]
[1749309903598,5.64686735,105620.0,105610.0,1.07298375]
[1749309904026,5.64686426,105620.0,105610.0,1.07298375]
[1749309904489,5.62248466,105620.0,105610.0,1.07498375]
[1749309904697,5.64686354,105620.0,105610.0,1.07498375]
[1749309905320,5.62416831,105620.0,105610.0,1.07498375]
[1749309905527,5.60796406,105620.0,105610.0,1.07498375]
[1749309905796,5.59185228,105620.0,105610.0,1.07498375]
[1749309906053,5.58520792,105620.0,105610.0,1.07498375]
[1749309906269,4.76002827,105620.0,105610.0,1.07498375]
[1749309906492,4.78439009,105620.0,105610.0,1.07498375]
[1749309906706,5.58520712,105620.0,105610.0,1.07498375]
[1749309906921,4.78439009,105620.0,105610.0,1.07498375]
[1749309907138,5.59184936,105620.0,105610.0,1.07498375]
[1749309907592,5.58520201,105620.0,105610.0,1.07498375]
[1749309907805,5.56748943,105620.0,105610.0,1.07498375]
[1749309908019,5.59184418,105620.0,105610.0,1.07498375]
[1749309908449,5.59184347,105620.0,105610.0,1.07498375]
[1749309909322,5.57413144,105620.0,105610.0,1.07498375]
[1749309909537,5.5918444,105620.0,105610.0,1.07498375]
[1749309909756,5.59184439,105620.0,105610.0,1.07498375]
[1749309910632,5.60684439,105620.0,105610.0,1.07498375]
[1749309910848,5.59737667,105620.0,105610.0,1.07498375]
[1749309911066,5.60684099,105620.0,105610.0,0.78278375]
[1749309911310,5.61639875,105620.0,105610.0,0.40214375]
[1749309911512,5.60533043,105620.0,105610.0,0.29322375]
[1749309911717,5.62303955,105620.0,105610.0,0.29322375]
[1749309911947,5.62303919,105620.0,105610.0,0.29322375]
[1749309912576,5.62303811,105620.0,105610.0,0.29322375]
[1749309912790,5.62303523,105620.0,105610.0,0.29322375]
[1749309912995,5.61639547,105620.0,105610.0,0.29322375]
[1749309913232,5.62303523,105620.0,105610.0,0.29322375]
[1749309913687,5.59868943,105620.0,105610.0,0.29322375]
[1749309913911,5.62303554,105620.0,105610.0,0.29322375]
[1749309914572,5.60532928,105620.0,105610.0,0.29322375]
[1749309914786,5.61639587,105620.0,105610.0,0.29322375]
[1749309914995,5.61639588,105620.0,105610.0,0.29322375]
[1749309915206,5.59868943,105620.0,105610.0,0.29322375]
[1749309915416,5.62303567,105620.0,105610.0,0.29322375]
[1749309915628,5.60683567,105620.0,105610.0,0.29322375]
[1749309915816,5.60683567,105620.0,105610.0,0.69322375]
[1749309916079,5.60683508,105620.0,105610.0,0.69322375]
[1749309916302,5.60683346,105620.0,105610.0,0.69322375]
[1749309916519,5.60683338,105620.0,105610.0,0.69322375]
[1749309916739,5.5891289,105620.0,105610.0,0.69322375]
[1749309916951,5.59898943,105620.0,105610.0,0.69322375]
[1749309917208,5.62333413,105620.0,105610.0,0.69322375]
[1749309918002,5.62333408,105620.0,105610.0,0.69322375]
[1749309918245,5.62333369,105620.0,105610.0,0.69322375]
[1749309918505,5.59898943,105620.0,105610.0,0.69322375]
[1749309918771,5.60562877,105620.0,105610.0,0.29318375]
[1749309919025,5.62333368,105620.0,105610.0,0.29318375]
[1749309919279,5.60562919,105620.0,105610.0,0.29318375]
[1749309919521,5.62333524,105620.0,105610.0,0.29318375]
[1749309919756,5.62333534,105620.0,105610.0,0.29318375]
[1749309919996,5.61669575,105620.0,105610.0,0.29318375]
[1749309920483,5.62333488,105620.0,105610.0,0.29318375]
[1749309921670,5.60562916,105620.0,105610.0,0.29318375]
[1749309921878,5.62333558,105620.0,105610.0,0.29318375]
[1749309922097,5.59898943,105620.0,105610.0,0.29318375]
[1749309922304,5.60563013,105620.0,105610.0,0.29318375]
[1749309922529,5.61669796,105620.0,105610.0,0.29318375]
[1749309922946,5.62333866,105620.0,105610.0,0.29318375]
[1749309923399,5.60563013,105620.0,105610.0,0.29318375]
[1749309923605,5.62333866,105620.0,105610.0,0.29318375]
[1749309923819,5.59898943,105620.0,105610.0,0.29318375]
[1749309924032,5.62333866,105620.0,105610.0,0.29318375]
[1749309924244,5.59898943,105620.0,105610.0,0.29318375]
[1749309924468,5.62333866,105620.0,105610.0,0.29318375]
[1749309924814,5.59898943,105620.0,105610.0,0.29318375]
[1749309925046,5.62333861,105620.0,105610.0,0.29318375]
[1749309925271,5.61669823,105620.0,105610.0,0.29318375]
[1749309925518,5.64600607,105620.0,105610.0,0.29318375]
[1749309925747,5.64600577,105620.0,105610.0,0.29318375]
[1749309925980,5.63936507,105620.0,105610.0,0.29318375]
[1749309926199,5.64600576,105620.0,105610.0,0.29318375]
[1749309926432,6.04973634,105620.0,105610.0,0.00214375]
[1749309926644,6.16067667,105620.0,105610.0,0.29318375]
[1749309926890,6.17134243,105620.0,105610.0,0.29318375]
[1749309927095,6.17134251,105620.0,105610.0,0.29318375]
[1749309927345,6.18904826,105620.0,105610.0,0.29318375]
[1749309927564,6.18904803,105620.0,105610.0,0.29318375]
[1749309927781,6.18904803,105620.0,105610.0,0.29218375]
[1749309927998,6.18904803,105620.0,105610.0,0.00114375]
[1749309928408,6.18904803,105620.0,105610.0,0.00014375]
[1749309928613,6.19104803,105620.0,105610.0,0.00014375]
[1749309928823,6.16870285,105620.0,105610.0,0.00014375]
[1749309929009,6.19305208,105620.0,105610.0,0.00014375]
[1749309929243,6.0946526,105620.0,105610.0,0.00014375]
[1749309929454,6.0976526,105620.0,105610.0,0.00014375]
[1749309929659,6.09564545,105620.0,105610.0,0.00014375]
[1749309930070,6.09864545,105620.0,105610.0,0.00014375]
[1749309930277,6.09865025,105620.0,105610.0,0.00014375]
[1749309930684,6.09864937,105620.0,105610.0,0.00014375]
[1749309931074,6.07430337,105620.0,105610.0,0.00014375]
[1749309931310,6.08094318,105620.0,105610.0,0.00014375]
[1749309931525,6.09864936,105620.0,105610.0,0.00014375]
[1749309931938,6.09864548,105620.0,105610.0,0.00014375]
[1749309932591,6.09200567,105620.0,105610.0,0.00014375]
[1749309932771,6.07430337,105620.0,105610.0,0.00014375]
[1749309933024,6.0702719,105620.0,105610.0,0.00014375]
[1749309933641,6.06363265,105620.0,105610.0,0.00014375]
[1749309933855,6.07027582,105620.0,105610.0,0.00014375]
[1749309934063,6.05257115,105620.0,105610.0,0.00014375]
[1749309934269,6.05257106,105620.0,105610.0,0.00014375]
[1749309934684,6.06364289,105620.0,105610.0,0.00014375]
[1749309934890,6.16668546,105620.0,105610.0,0.00014375]
[1749309935500,6.16668531,105620.0,105610.0,0.00014375]
[1749309935906,2.05254237,105620.0,105610.0,0.00014375]
[1749309936099,6.09201676,105620.0,105610.0,0.00014375]
[1749309936302,6.07430337,105620.0,105610.0,0.00014375]
[1749309936695,6.09865918,105620.0,105610.0,0.00014375]
[1749309937102,6.09865926,105620.0,105610.0,0.00014375]
[1749309937306,6.09865933,105620.0,105610.0,0.00014375]
[1749309937515,6.07028393,105620.0,105610.0,0.00014375]
[1749309937725,6.07028466,105620.0,105610.0,0.00014375]
[1749309937926,6.05257065,105620.0,105610.0,0.00014375]
[1749309938133,6.07028459,105620.0,105610.0,0.00014375]
[1749309938334,6.09351477,105620.0,105610.0,0.00014375]
[1749309938559,6.0935148,105620.0,105610.0,0.00014375]
[1749309938978,6.12189002,105620.0,105610.0,0.00014375]
[1749309939183,6.09865984,105620.0,105610.0,0.00014375]
[1749309939395,6.06364133,105620.0,105610.0,0.00014375]
[1749309939605,6.07028418,105620.0,105610.0,0.00014375]
[1749309939841,6.05257057,105620.0,105610.0,0.00014375]
[1749309940058,0.53884462,105610.0,105600.0,0.38053143]
[1749309940284,5.59186437,105610.0,105600.0,0.38053143]
[1749309940489,5.614536,105610.0,105600.0,0.38053143]
[1749309940691,5.61453603,105610.0,105600.0,0.38053143]
[1749309940907,4.8070747,105610.0,105600.0,0.38053143]
[1749309941108,5.61453559,105610.0,105600.0,0.38053143]
[1749309941314,5.21180502,105610.0,105600.0,0.38053143]
[1749309941515,5.21180459,105610.0,105600.0,0.38053143]
[1749309941724,5.20616219,105610.0,105600.0,0.38053143]
[1749309941935,5.21280463,105610.0,105600.0,0.38053143]
[1749309942369,5.19013369,105610.0,105600.0,0.38053143]
[1749309942577,5.19013384,105610.0,105600.0,0.38053143]
[1749309942791,5.19013384,105610.0,105600.0,0.39703143]
[1749309942995,5.17242027,105610.0,105600.0,0.39703143]
[1749309943204,5.19013433,105610.0,105600.0,0.39703143]
[1749309943407,5.16577768,105610.0,105600.0,0.39703143]
[1749309943622,5.19013402,105610.0,105600.0,0.39703143]
[1749309944405,5.19013418,105610.0,105600.0,0.39703143]
[1749309944583,5.21280759,105610.0,105600.0,0.39703143]
[1749309944768,5.19509389,105610.0,105600.0,0.39703143]
[1749309944965,5.21280815,105610.0,105600.0,0.39703143]
[1749309945160,5.18845109,105610.0,105600.0,0.39703143]
[1749309945368,5.19509391,105610.0,105600.0,0.39703143]
[1749309945567,5.21281008,105610.0,105600.0,0.39703143]
[1749309946269,5.21281011,105610.0,105600.0,0.39703143]
[1749309946477,5.20616672,105610.0,105600.0,0.39703143]
[1749309946651,5.21281084,105610.0,105600.0,0.39703143]
[1749309946838,5.18845109,105610.0,105600.0,0.39703143]
[1749309947035,5.19509453,105610.0,105600.0,0.39703143]
[1749309947409,5.2061673,105610.0,105600.0,0.39703143]
[1749309947615,5.20616929,105610.0,105600.0,0.39703143]
[1749309947988,5.19509541,105610.0,105600.0,0.39703143]
[1749309948214,5.21281361,105610.0,105600.0,0.39703143]
[1749309948356,5.18845109,105610.0,105600.0,0.39703143]
[1749309948556,5.19509541,105610.0,105600.0,0.39703143]
[1749309948758,5.21281361,105610.0,105600.0,0.39703143]
[1749309948954,5.18845109,105610.0,105600.0,0.39703143]
[1749309949161,5.19509541,105610.0,105600.0,0.39703143]
[1749309949370,5.21281336,105610.0,105600.0,0.39703143]
[1749309949901,5.21281471,105610.0,105600.0,0.39703143]
[1749309950137,5.20617287,105610.0,105600.0,0.39703143]
[1749309950350,5.19509675,105610.0,105600.0,0.39703143]
[1749309950535,5.21281853,105610.0,105600.0,0.39703143]
[1749309950739,5.18845109,105610.0,105600.0,0.39703143]
[1749309950905,5.20617287,105610.0,105600.0,0.39703143]
[1749309951163,5.21281853,105610.0,105600.0,0.39703143]
[1749309951365,5.19509676,105610.0,105600.0,0.39703143]
[1749309951661,5.20617287,105610.0,105600.0,0.39703143]
[1749309951800,5.1950997,105610.0,105600.0,0.30754]
[1749309952004,5.20618071,105610.0,105600.0,0.30754]
[1749309952289,5.21282932,105610.0,105600.0,0.30754]
[1749309952810,5.21282958,105610.0,105600.0,0.30754]
[1749309953015,5.21282958,105610.0,105600.0,0.29104]
[1749309953214,5.21282967,105610.0,105600.0,0.29104]
[1749309954276,5.19509979,105610.0,105600.0,0.29104]
[1749309954478,5.21282996,105610.0,105600.0,0.29104]
[1749309955474,5.21283007,105610.0,105600.0,0.29104]
[1749309955649,5.20618126,105610.0,105600.0,0.29104]
[1749309955869,5.2128301,105610.0,105600.0,0.29104]
[1749309956827,5.20618793,105610.0,105600.0,0.29104]
[1749309957043,5.21283939,105610.0,105600.0,0.29104]
[1749309957243,5.19510242,105610.0,105600.0,0.29104]
[1749309957447,5.2128393,105610.0,105600.0,0.29104]
[1749309958286,5.21283933,105610.0,105600.0,0.29104]
[1749309958703,5.18845109,105610.0,105600.0,0.29104]
[1749309958898,5.21285137,105610.0,105600.0,0.29104]
[1749309959097,5.18845109,105610.0,105600.0,0.29104]
[1749309959502,5.2128517,105610.0,105600.0,0.29104]
[1749309959930,5.20619719,105610.0,105600.0,0.29104]
[1749309960355,5.18845109,105610.0,105600.0,0.29104]
[1749309960559,5.19510587,105610.0,105600.0,0.29104]
[1749309960773,5.21285197,105610.0,105600.0,0.29104]
[1749309960983,5.19510587,105610.0,105600.0,0.29104]
[1749309961236,5.21285197,105610.0,105600.0,0.29104]
[1749309961454,5.19510588,105610.0,105600.0,0.29104]
[1749309961678,5.19510589,105610.0,105600.0,0.29104]
[1749309961881,5.2061971,105610.0,105600.0,0.29104]
[1749309962083,0.19886344,105600.0,105590.0,0.3247]
[1749309962300,1.10272408,105600.0,105590.0,0.41422]
[1749309962528,1.12712459,105600.0,105590.0,0.70514]
[1749309962780,0.29526292,105600.0,105590.0,0.70514]
[1749309963109,1.12046982,105600.0,105590.0,0.70514]
[1749309963306,0.72339297,105600.0,105590.0,0.70614]
[1749309963514,0.73266098,105600.0,105590.0,0.70614]
[1749309963732,0.72600658,105600.0,105590.0,0.70614]
[1749309963940,0.72600672,105600.0,105590.0,0.70614]
[1749309964148,0.73266151,105600.0,105590.0,0.70614]
[1749309964361,0.70826064,105600.0,105590.0,0.70614]
[1749309964567,0.73266152,105600.0,105590.0,0.70614]
[1749309964772,0.73266153,105600.0,105590.0,0.70614]
[1749309964982,0.72600674,105600.0,105590.0,0.70614]
[1749309965158,0.72600675,105600.0,105590.0,0.70614]
[1749309965801,0.70826064,105600.0,105590.0,0.70614]
[1749309966001,0.7326604,105600.0,105590.0,0.70614]
[1749309966153,0.73266095,105600.0,105590.0,0.70614]
[1749309966384,0.73266095,105600.0,105590.0,1.10614]
[1749309966749,0.73266128,105600.0,105590.0,1.10614]
[1749309966970,0.70826064,105600.0,105590.0,1.10614]
[1749309967192,0.72600662,105600.0,105590.0,1.10614]
[1749309967414,0.73266136,105600.0,105590.0,1.10614]
[1749309967630,0.71491538,105600.0,105590.0,1.10614]
[1749309967832,0.73266136,105600.0,105590.0,1.10614]
[1749309968038,0.72600662,105600.0,105590.0,1.10614]
[1749309968246,0.73266136,105600.0,105590.0,1.10614]
[1749309968445,1.13639194,105600.0,105590.0,1.10614]
[1749309968663,1.11199122,105600.0,105590.0,1.10614]
[1749309968895,1.13639177,105600.0,105590.0,1.10614]
[1749309969090,1.13639176,105600.0,105590.0,1.10614]
[1749309969298,1.11199122,105600.0,105590.0,1.10614]
[1749309969495,1.13639008,105600.0,105590.0,1.10614]
[1749309969739,1.1363901,105600.0,105590.0,1.10614]
[1749309970316,1.13639021,105600.0,105590.0,1.10614]
[1749309970511,1.12973598,105600.0,105590.0,1.10614]
[1749309970713,1.11864551,105600.0,105590.0,1.10614]
[1749309970969,0.71491493,105600.0,105590.0,1.10614]
[1749309971116,0.7326597,105600.0,105590.0,1.10614]
[1749309972305,0.71491491,105600.0,105590.0,1.10614]
[1749309972739,0.72600537,105600.0,105590.0,1.10614]
[1749309972947,0.72600563,105600.0,105590.0,1.10614]
[1749309973156,0.73266,105600.0,105590.0,1.10614]
[1749309973363,1.13639058,105600.0,105590.0,1.10614]
[1749309973571,0.32892942,105600.0,105590.0,1.10614]
[1749309973776,1.12973621,105600.0,105590.0,1.10614]
[1749309973963,1.1297395,105600.0,105590.0,1.10614]
[1749309974227,1.1363951,105600.0,105590.0,1.10614]
[1749309974875,1.13639615,105600.0,105590.0,1.10614]
[1749309975070,1.13639637,105600.0,105590.0,1.10614]
[1749309975479,1.13639632,105600.0,105590.0,0.70614]
[1749309975902,1.13639492,105600.0,105590.0,0.70614]
[1749309976114,1.13639492,105600.0,105590.0,1.10614]
[1749309976322,1.13639496,105600.0,105590.0,1.10614]
[1749309976985,1.13639612,105600.0,105590.0,1.10614]
[1749309977412,1.13639651,105600.0,105590.0,1.08994]
[1749309977630,1.13639649,105600.0,105590.0,1.08994]
[1749309977858,1.1186472,105600.0,105590.0,1.08994]
[1749309978076,1.13639649,105600.0,105590.0,1.08994]
[1749309978316,1.15414578,105600.0,105590.0,1.08994]
[1749309979154,1.13639649,105600.0,105590.0,1.08994]
[1749309979371,0.7504152,105600.0,105590.0,1.10644]
[1749309979573,0.72600993,105600.0,105590.0,1.10644]
[1749309979986,0.75041526,105600.0,105590.0,1.10644]
[1749309980797,0.75041522,105600.0,105590.0,0.726]
[1749309980928,0.75041548,105600.0,105590.0,1.10628]
[1749309981600,0.75041547,105600.0,105590.0,1.10628]
[1749309982204,0.75041545,105600.0,105590.0,1.10628]
[1749309982370,0.732666,105600.0,105590.0,1.10628]
[1749309982577,0.75041553,105600.0,105590.0,1.10628]
[1749309982761,0.74375928,105600.0,105590.0,1.10628]
[1749309983167,0.75041528,105600.0,105590.0,1.10628]
[1749309983366,0.72600993,105600.0,105590.0,1.10628]
[1749309983579,0.75041528,105600.0,105590.0,1.10628]
[1749309984236,0.34949812,105600.0,105590.0,1.10628]
[1749309984439,0.33174877,105600.0,105590.0,1.10628]
[1749309984636,0.34022535,105600.0,105590.0,1.30516246]
[1749309984919,0.31301221,105600.0,105590.0,1.30516246]
[1749309985126,0.33075608,105600.0,105590.0,1.30516246]
[1749309985551,0.34004502,105600.0,105590.0,1.30516246]
[1749309985961,0.33057551,105600.0,105590.0,1.11575059]
[1749309986163,0.32128654,105600.0,105590.0,1.11575059]
[1749309986366,0.32128597,105600.0,105590.0,1.11575059]
[1749309986574,0.20714322,105600.0,105590.0,1.10628]
[1749309986781,0.224887,105600.0,105590.0,1.31463296]
[1749309987193,0.224887,105600.0,105590.0,1.72783386]
[1749309987404,0.23434936,105600.0,105590.0,1.72783386]
[1749309987619,0.22487985,105600.0,105590.0,1.10628]
[1749309987836,0.22487984,105600.0,105590.0,1.10628]
[1749309988448,0.20714322,105600.0,105590.0,1.10628]
[1749309988734,0.22487963,105600.0,105590.0,1.11575059]
[1749309989386,0.22487963,105600.0,105590.0,1.10628]
[1749309989387,0.23457132,105600.0,105590.0,1.10628]
[1749309989627,0.23456955,105600.0,105590.0,1.10628]
[1749309989806,0.22487699,105600.0,105590.0,1.10628]
[1749309991416,0.20714322,105600.0,105590.0,1.10628]
[1749309991624,0.22487699,105600.0,105590.0,1.10628]
[1749309992234,0.20714322,105600.0,105590.0,1.10628]
[1749309992436,0.22487699,105600.0,105590.0,1.10628]
[1749309993112,0.20714322,105600.0,105590.0,1.10628]
[1749309993336,0.22487699,105600.0,105590.0,1.10628]
[1749309993544,0.22487614,105600.0,105590.0,1.10628]
[1749309993828,0.20714322,105600.0,105590.0,1.10628]
[1749309994044,0.22487614,105600.0,105590.0,1.10628]
[1749309994262,0.20714322,105600.0,105590.0,1.10628]
[1749309994479,0.22487365,105600.0,105590.0,1.10628]
[1749309994926,0.20714322,105600.0,105590.0,1.10628]
[1749309995150,0.22487158,105600.0,105590.0,1.10628]
[1749309995376,1.03233279,105600.0,105590.0,0.6932]
[1749309995613,1.12873143,105600.0,105590.0,1.07332]
[1749309995823,1.14483226,105600.0,105590.0,1.07332]
[1749309996054,1.15148055,105600.0,105590.0,1.07332]
[1749309996281,1.13538035,105600.0,105590.0,1.07332]
[1749309996502,1.12873206,105600.0,105590.0,1.07232]
[1749309996717,1.13637931,105600.0,105590.0,1.07232]
[1749309996995,1.11965175,105600.0,105590.0,1.07232]
[1749309997212,1.13073159,105600.0,105590.0,1.07232]
[1749309997415,1.15347921,105600.0,105590.0,1.07232]
[1749309997835,1.13737928,105600.0,105590.0,1.07232]
[1749309998251,1.13737932,105600.0,105590.0,1.07232]
[1749309998458,1.11300386,105600.0,105590.0,1.07232]
[1749309998661,0.7336489,105600.0,105590.0,1.07232]
[1749309999081,0.72700101,105600.0,105590.0,1.07232]
[1749309999287,0.7336489,105600.0,105590.0,1.07232]
[1749310000114,0.73364794,105600.0,105590.0,1.07232]
[1749310001388,0.71592126,105600.0,105590.0,1.07232]
[1749310001603,0.73364922,105600.0,105590.0,1.07232]
[1749310001828,0.73364917,105600.0,105590.0,1.07232]
[1749310002060,1.13073177,105600.0,105590.0,1.07232]
[1749310002281,1.13737958,105600.0,105590.0,1.07232]
[1749310002495,1.1196517,105600.0,105590.0,1.07232]
[1749310002703,1.13737895,105600.0,105590.0,1.07232]
[1749310002917,1.12900386,105600.0,105590.0,1.07232]
[1749310003135,1.16977823,105600.0,105590.0,0.78156]
[1749310003386,1.16977789,105600.0,105590.0,1.07228]
[1749310003608,1.16977774,105600.0,105590.0,0.98292]
[1749310003829,1.16977766,105600.0,105590.0,0.98292]
[1749310004046,1.15205126,105600.0,105590.0,0.98292]
[1749310004265,1.14540386,105600.0,105590.0,0.98292]
[1749310004490,1.16977769,105600.0,105590.0,0.98292]
[1749310005195,1.16977794,105600.0,105590.0,0.98292]
[1749310005416,1.153378,105600.0,105590.0,0.98292]
[1749310005629,1.13565087,105600.0,105590.0,0.98292]
[1749310005838,1.12900386,105600.0,105590.0,0.98292]
[1749310006052,1.15337624,105600.0,105590.0,0.98292]
[1749310006258,1.12900386,105600.0,105590.0,0.98292]
[1749310006507,1.15337624,105600.0,105590.0,0.98292]
[1749310006941,1.13737624,105600.0,105590.0,0.98292]
[1749310007190,1.13737632,105600.0,105590.0,0.98292]
[1749310007615,1.13737631,105600.0,105590.0,0.98292]
[1749310008051,1.13072922,105600.0,105590.0,0.98292]
[1749310008273,1.13737621,105600.0,105590.0,0.98292]
[1749310008527,1.13737554,105600.0,105590.0,0.98292]
[1749310008977,1.11300386,105600.0,105590.0,0.98292]
[1749310009185,1.13072852,105600.0,105590.0,0.98292]
[1749310009602,1.13737526,105600.0,105590.0,0.98292]
[1749310010035,1.13737527,105600.0,105590.0,0.98292]
[1749310010908,1.1373748,105600.0,105590.0,0.98292]
[1749310011375,1.13737436,105600.0,105590.0,0.98292]
[1749310011810,1.13737432,105600.0,105590.0,0.98292]
[1749310012252,1.1373724,105600.0,105590.0,0.98292]
[1749310012487,1.11964971,105600.0,105590.0,0.98292]
[1749310012919,1.11964972,105600.0,105590.0,0.98292]
[1749310013129,1.13737198,105600.0,105590.0,0.98292]
[1749310014405,1.11300386,105600.0,105590.0,0.98292]
[1749310014614,1.13737191,105600.0,105590.0,0.98292]
[1749310014826,1.13737104,105600.0,105590.0,0.98292]
[1749310015042,1.11964969,105600.0,105590.0,0.98292]
[1749310015259,1.13737113,105600.0,105590.0,0.98292]
[1749310015681,1.13737113,105600.0,105590.0,0.98288]
[1749310015898,1.13737079,105600.0,105590.0,0.98288]
[1749310016336,1.11300386,105600.0,105590.0,0.98288]
[1749310016801,1.13072518,105600.0,105590.0,0.98288]
[1749310017012,1.13737067,105600.0,105590.0,0.98288]
[1749310017222,1.13737205,105600.0,105590.0,0.98288]
[1749310017661,1.11965072,105600.0,105590.0,0.98288]
[1749310017879,1.13737574,105600.0,105590.0,0.98288]
[1749310018083,1.11965072,105600.0,105590.0,1.07224]
[1749310018295,1.13737575,105600.0,105590.0,1.07224]
[1749310018519,1.13072889,105600.0,105590.0,1.07224]
[1749310018817,1.13072897,105600.0,105590.0,1.07224]
[1749310019031,1.13737584,105600.0,105590.0,1.07224]
[1749310019251,0.73364526,105600.0,105590.0,1.07224]
[1749310019467,0.73364984,105600.0,105590.0,1.07224]
[1749310019897,0.7159219,105600.0,105590.0,1.07224]
[1749310020114,0.73365156,105600.0,105590.0,1.07224]
[1749310020325,0.7159219,105600.0,105590.0,1.07224]
[1749310020538,0.73365156,105600.0,105590.0,1.07224]